fUST/lending_fUST_20260610
["ID","MTS","AMOUNT","RATE_DAILY","PERIOD"]
[424711835,1781075438000,-152.0,0.00018333,7]
[424711830,1781075438000,-447.202,0.00018236,2]
[424711839,1781075438000,-196.06807149,0.00018427,2]
[424711859,1781075446000,-19010.14950877,0.00018578,2]
[424711865,1781075884000,-5000.0,0.00016885,2]
[424711866,1781075901000,-5000.0,0.00016885,2]
[424711867,1781075932000,-3961.51299714,0.00016885,2]
[424711869,1781076143000,300.91478447,0.00020223,120]
[424711870,1781076211000,-2961.35340831,0.000115,2]
[424711871,1781076212000,254.61393159,0.00015021,2]
[424711904,1781076632000,-500.0,0.00018277,2]
[424711902,1781076632000,-500.0,0.00018277,2]
[424711906,1781076632000,-500.0,0.00018277,2]
[424711900,1781076632000,-500.0,0.00018277,2]
[424711892,1781076632000,-227.27381705,0.00018178,2]
[424711890,1781076632000,-439.55845378,0.00017931,2]
[424711888,1781076632000,-2372.15306258,0.00017931,2]
[424711894,1781076632000,-300.0,0.00018276,2]
[424711884,1781076632000,-702.641935,0.00017412,2]
[424711896,1781076632000,-222.85453344,0.00018277,2]
[424711886,1781076632000,-1335.67176947,0.00017931,2]
[424711898,1781076632000,-313.52186201,0.00018277,2]
[424711882,1781076632000,-1173.7848328,0.00017291,2]
[424711910,1781076632000,-500.0,0.00018277,2]
[424711912,1781076632000,-500.0,0.00018277,2]
[424711926,1781076632000,-5473.56631267,0.00018278,2]
[424711913,1781076632000,-500.0,0.00018277,2]
[424711916,1781076632000,-483.59982049,0.00018277,2]
[424711918,1781076632000,-16.40017951,0.00018277,2]
[424711921,1781076632000,-500.0,0.00018277,2]
[424711920,1781076632000,-190.07386132,0.00018277,2]
[424711923,1781076632000,-500.0,0.00018277,2]
[424711922,1781076632000,-500.0,0.00018277,2]
[424711924,1781076632000,-500.0,0.00018277,2]
[424711927,1781076632000,-513.00241066,0.00018278,2]
[424711908,1781076632000,-500.0,0.00018277,2]
[424711929,1781076632000,-1905.92221814,0.00018278,2]
[424711928,1781076632000,-14781.79908175,0.00018278,2]
[424711930,1781076632000,-469.304486,0.00018278,2]
[424711960,1781076639000,-500.0,0.00018377,2]
[424711957,1781076639000,-500.0,0.00018377,2]
[424711967,1781076639000,-663.92,0.00018468,3]
[424711956,1781076639000,-500.0,0.00018377,2]
[424711958,1781076639000,-500.0,0.00018377,2]
[424711955,1781076639000,-340.931,0.00018377,2]
[424711959,1781076639000,-500.0,0.00018377,2]
[424711968,1781076639000,-331.96,0.00018468,3]
[424711963,1781076639000,-2215.751,0.00018467,2]
[424711962,1781076639000,-500.0,0.00018466,2]
[424711966,1781076639000,-1416.0,0.00018467,2]
[424711964,1781076639000,-3625.0,0.00018467,2]
[424711965,1781076639000,-186.0,0.00018467,2]
[424711952,1781076639000,-152.0,0.00018338,7]
[424711961,1781076639000,-500.0,0.00018377,2]
[424711954,1781076639000,-152.0,0.00018344,7]
[424711944,1781076639000,-314.30422794,0.00018333,7]
[424711950,1781076639000,-623.5577581,0.00018333,7]
[424711937,1781076639000,-813.54747937,0.00018278,2]
[424711936,1781076639000,-459.493326,0.00018278,2]
[424711938,1781076639000,-19351.41192111,0.00018278,2]
[424711939,1781076639000,-44111.19341304,0.00018278,2]
[424711941,1781076639000,-1817.73606762,0.00018278,2]
[424711940,1781076639000,-163221.16945228,0.00018278,2]
[424711953,1781076639000,-152.0,0.00018344,7]
[424711942,1781076639000,-388.14913792,0.00018333,7]
[424711945,1781076639000,-1257.21691176,0.00018333,7]
[424711949,1781076639000,-155.88943953,0.00018333,7]
[424711947,1781076639000,-1438.18677678,0.00018333,7]
[424711948,1781076639000,-292.73287954,0.00018333,7]
[424711946,1781076639000,-359.5466942,0.00018333,7]
[424711951,1781076639000,-152.0,0.00018338,7]
[424711943,1781076639000,-1552.59655166,0.00018333,7]
[424711972,1781076639000,-500.0,0.00018477,2]
[424711976,1781076639000,-176.27,0.00018478,2]
[424711971,1781076639000,-152.0,0.00018474,2]
[424711991,1781076639000,-591.5447482,0.00018875,2]
[424711993,1781076639000,-1146.05508775,0.00018875,2]
[424711994,1781076639000,-222.16334608,0.00018875,2]
[424711992,1781076639000,-1237.22537711,0.00018875,2]
[424711997,1781076639000,-300.0,0.00018949,2]
[424711996,1781076639000,-300.0,0.00018949,2]
[424711995,1781076639000,-300.0,0.00018949,2]
[424711999,1781076639000,-300.0,0.00018949,2]
[424711998,1781076639000,-300.0,0.00018949,2]
[424712001,1781076639000,-300.0,0.00018949,2]
[424712000,1781076639000,-300.0,0.00018949,2]
[424712003,1781076639000,-300.0,0.00018949,2]
[424712004,1781076639000,-300.0,0.00018949,2]
[424712005,1781076639000,-300.0,0.00018949,2]
[424711969,1781076639000,-165.98,0.00018468,3]
[424711990,1781076639000,-954.13783482,0.00018875,2]
[424711989,1781076639000,-636.69727097,0.00018875,2]
[424712002,1781076639000,-300.0,0.00018949,2]
[424711985,1781076639000,-634.3748282,0.00018777,2]
[424711974,1781076639000,-500.0,0.00018477,2]
[424711973,1781076639000,-500.0,0.00018477,2]
[424711970,1781076639000,-497.98,0.00018468,3]
[424711975,1781076639000,-501.89165721,0.00018477,2]
[424711977,1781076639000,-151.0,0.000185,2]
[424711978,1781076639000,-229.6503463,0.00018577,2]
[424711979,1781076639000,-163.80290662,0.000186,7]
[424711982,1781076639000,-500.0,0.00018777,2]
[424711981,1781076639000,-153.82,0.00018756,2]
[424711983,1781076639000,-500.0,0.00018777,2]
[424711984,1781076639000,-500.0,0.00018777,2]
[424711987,1781076639000,-238.5344587,0.00018875,2]
[424711986,1781076639000,-153.82,0.00018856,2]
[424711980,1781076639000,-153.82,0.00018656,2]
[424711988,1781076639000,-687.34743173,0.00018875,2]
[424712043,1781076640000,-500.0,0.00019178,2]
[424712047,1781076640000,-500.0,0.00019178,2]
[424712046,1781076640000,-500.0,0.00019178,2]
[424712042,1781076640000,-1000.0,0.00019178,2]
[424712036,1781076640000,-368.18303524,0.00019111,2]
[424712041,1781076640000,-1000.0,0.00019178,2]
[424712037,1781076640000,-153.82,0.00019156,2]
[424712039,1781076640000,-1000.0,0.00019178,2]
[424712038,1781076640000,-1000.0,0.00019178,2]
[424712033,1781076640000,-182.94682,0.00019098,2]
[424712040,1781076640000,-1000.0,0.00019178,2]
[424712044,1781076640000,-500.0,0.00019178,2]
[424712054,1781076640000,-500.0,0.00019178,2]
[424712048,1781076640000,-500.0,0.00019178,2]
[424712051,1781076640000,-390.08186668,0.00019178,2]
[424712052,1781076640000,-682.71,0.00019178,2]
[424712049,1781076640000,-500.0,0.00019178,2]
[424712050,1781076640000,-500.0,0.00019178,2]
[424712053,1781076640000,-340.88940784,0.00019178,2]
[424712055,1781076640000,-624.85539988,0.00019178,2]
[424712056,1781076640000,-500.0,0.00019178,2]
[424712057,1781076640000,-500.0,0.00019178,2]
[424712059,1781076640000,-194.7,0.00019178,2]
[424712058,1781076640000,-500.0,0.00019178,2]
[424712035,1781076640000,-395.4093,0.000191,2]
[424712045,1781076640000,-151.09388905,0.00019178,2]
[424712034,1781076640000,-237.04125531,0.000191,2]
[424712015,1781076640000,-1000.0,0.00019,2]
[424712032,1781076640000,-153.82,0.00019056,2]
[424712061,1781076640000,-500.0,0.00019178,2]
[424712007,1781076640000,-300.0,0.00018949,2]
[424712006,1781076640000,-300.0,0.00018949,2]
[424712009,1781076640000,-300.0,0.00018949,2]
[424712008,1781076640000,-300.0,0.00018949,2]
[424712011,1781076640000,-153.82,0.00018956,2]
[424712010,1781076640000,-600.0,0.00018949,2]
[424712012,1781076640000,-1000.0,0.00018969,2]
[424712013,1781076640000,-1000.0,0.00018969,2]
[424712014,1781076640000,-22011.12311749,0.00019,2]
[424712016,1781076640000,-1000.0,0.00019,2]
[424712018,1781076640000,-151.0,0.00019,2]
[424712017,1781076640000,-1000.0,0.00019,2]
[424712020,1781076640000,-417.15472785,0.00019013,2]
[424712019,1781076640000,-160.0,0.00019011,2]
[424712021,1781076640000,-300.0,0.00019036,2]
[424712023,1781076640000,-300.0,0.00019036,2]
[424712025,1781076640000,-300.0,0.00019036,2]
[424712022,1781076640000,-300.0,0.00019036,2]
[424712024,1781076640000,-300.0,0.00019036,2]
[424712028,1781076640000,-300.0,0.00019036,2]
[424712026,1781076640000,-300.0,0.00019036,2]
[424712027,1781076640000,-300.0,0.00019036,2]
[424712029,1781076640000,-300.0,0.00019036,2]
[424712030,1781076640000,-300.0,0.00019036,2]
[424712031,1781076640000,-180.88,0.00019036,2]
[424712060,1781076640000,-500.0,0.00019178,2]
[424712105,1781076640000,-500.0,0.00019178,2]
[424712063,1781076640000,-370.8022878,0.00019178,2]
[424712093,1781076640000,-2633.84,0.00019178,2]
[424712096,1781076640000,-171.69921207,0.00019178,2]
[424712097,1781076640000,-595.54,0.00019178,2]
[424712095,1781076640000,-684.64,0.00019178,2]
[424712098,1781076640000,-500.0,0.00019178,2]
[424712099,1781076640000,-1622.59,0.00019178,2]
[424712100,1781076640000,-500.0,0.00019178,2]
[424712101,1781076640000,-500.0,0.00019178,2]
[424712102,1781076640000,-1123.68,0.00019178,2]
[424712104,1781076640000,-500.0,0.00019178,2]
[424712109,1781076640000,-500.0,0.00019277,2]
[424712107,1781076640000,-774.74,0.00019178,2]
[424712108,1781076640000,-153.82,0.00019256,2]
[424712110,1781076640000,-280.0,0.00019277,2]
[424712111,1781076640000,-237.04125531,0.000193,2]
[424712113,1781076640000,-600.0,0.00019452,2]
[424712114,1781076640000,-370.0,0.00019452,2]
[424712112,1781076640000,-153.82,0.00019356,2]
[424712115,1781076640000,-700.0,0.00019452,2]
[424712116,1781076640000,-500.0,0.00019452,2]
[424712120,1781076640000,-500.0,0.00019452,2]
[424712117,1781076640000,-500.0,0.00019452,2]
[424712118,1781076640000,-500.0,0.00019452,2]
[424712062,1781076640000,-500.0,0.00019178,2]
[424712119,1781076640000,-500.0,0.00019452,2]
[424712094,1781076640000,-500.0,0.00019178,2]
[424712091,1781076640000,-500.0,0.00019178,2]
[424712121,1781076640000,-340.69,0.00019452,2]
[424712089,1781076640000,-565.03,0.00019178,2]
[424712092,1781076640000,-510.03187931,0.00019178,2]
[424712065,1781076640000,-847.44,0.00019178,2]
[424712067,1781076640000,-1593.2,0.00019178,2]
[424712066,1781076640000,-500.0,0.00019178,2]
[424712070,1781076640000,-1252.66,0.00019178,2]
[424712068,1781076640000,-500.0,0.00019178,2]
[424712071,1781076640000,-500.0,0.00019178,2]
[424712072,1781076640000,-500.0,0.00019178,2]
[424712069,1781076640000,-712.04,0.00019178,2]
[424712074,1781076640000,-500.0,0.00019178,2]
[424712073,1781076640000,-687.38,0.00019178,2]
[424712075,1781076640000,-500.0,0.00019178,2]
[424712076,1781076640000,-1109.04,0.00019178,2]
[424712064,1781076640000,-10466.89,0.00019178,2]
[424712079,1781076640000,-549.32,0.00019178,2]
[424712077,1781076640000,-2526.65,0.00019178,2]
[424712087,1781076640000,-2433.85,0.00019178,2]
[424712088,1781076640000,-1970.7,0.00019178,2]
[424712085,1781076640000,-552.74562898,0.00019178,2]
[424712083,1781076640000,-1380.65,0.00019178,2]
[424712086,1781076640000,-500.0,0.00019178,2]
[424712082,1781076640000,-2369.52,0.00019178,2]
[424712084,1781076640000,-500.0,0.00019178,2]
[424712080,1781076640000,-1685.33,0.00019178,2]
[424712078,1781076640000,-948.0,0.00019178,2]
[424712081,1781076640000,-668.78,0.00019178,2]
[424712090,1781076640000,-500.0,0.00019178,2]
[424712158,1781076641000,-2633.84,0.00019452,2]
[424712159,1781076641000,-500.0,0.00019452,2]
[424712162,1781076641000,-500.0,0.00019452,2]
[424712160,1781076641000,-684.64,0.00019452,2]
[424712152,1781076641000,-500.0,0.00019452,2]
[424712153,1781076641000,-2433.85,0.00019452,2]
[424712156,1781076641000,-500.0,0.00019452,2]
[424712154,1781076641000,-1970.7,0.00019452,2]
[424712155,1781076641000,-565.03,0.00019452,2]
[424712157,1781076641000,-500.0,0.00019452,2]
[424712161,1781076641000,-595.54,0.00019452,2]
[424712168,1781076641000,-500.0,0.00019452,2]
[424712165,1781076641000,-500.0,0.00019452,2]
[424712164,1781076641000,-500.0,0.00019452,2]
[424712166,1781076641000,-1123.68,0.00019452,2]
[424712167,1781076641000,-500.0,0.00019452,2]
[424712169,1781076641000,-774.74,0.00019452,2]
[424712170,1781076641000,-153.82,0.00019456,2]
[424712171,1781076641000,-237.04125531,0.000195,2]
[424712172,1781076641000,-154.03779425,0.00019556,2]
[424712173,1781076641000,-300.0,0.00019589,3]
[424712174,1781076641000,-237.04125531,0.000196,2]
[424712151,1781076641000,-500.0,0.00019452,2]
[424712175,1781076641000,-151.0,0.000196,2]
[424712163,1781076641000,-1622.59,0.00019452,2]
[424712150,1781076641000,-1380.65,0.00019452,2]
[424712138,1781076641000,-391.09411425,0.00019452,2]
[424712147,1781076641000,-668.78,0.00019452,2]
[424712178,1781076641000,-500.0,0.00019726,2]
[424712122,1781076641000,-682.71,0.00019452,2]
[424712123,1781076641000,-500.0,0.00019452,2]
[424712124,1781076641000,-500.0,0.00019452,2]
[424712128,1781076641000,-500.0,0.00019452,2]
[424712125,1781076641000,-500.0,0.00019452,2]
[424712129,1781076641000,-500.0,0.00019452,2]
[424712127,1781076641000,-500.0,0.00019452,2]
[424712126,1781076641000,-500.0,0.00019452,2]
[424712130,1781076641000,-10466.89,0.00019452,2]
[424712132,1781076641000,-500.0,0.00019452,2]
[424712133,1781076641000,-1593.2,0.00019452,2]
[424712131,1781076641000,-847.44,0.00019452,2]
[424712134,1781076641000,-500.0,0.00019452,2]
[424712135,1781076641000,-712.04,0.00019452,2]
[424712139,1781076641000,-687.38,0.00019452,2]
[424712137,1781076641000,-500.0,0.00019452,2]
[424712136,1781076641000,-1252.66,0.00019452,2]
[424712140,1781076641000,-500.0,0.00019452,2]
[424712145,1781076641000,-549.32,0.00019452,2]
[424712141,1781076641000,-500.0,0.00019452,2]
[424712142,1781076641000,-1109.04,0.00019452,2]
[424712143,1781076641000,-2526.65,0.00019452,2]
[424712144,1781076641000,-948.0,0.00019452,2]
[424712146,1781076641000,-1685.33,0.00019452,2]
[424712148,1781076641000,-2369.52,0.00019452,2]
[424712179,1781076641000,-500.0,0.00019726,2]
[424712183,1781076641000,-500.0,0.00019726,2]
[424712177,1781076641000,-425.30160079,0.00019726,2]
[424712214,1781076641000,-500.0,0.00019726,2]
[424712213,1781076641000,-565.03,0.00019726,2]
[424712211,1781076641000,-2433.85,0.00019726,2]
[424712215,1781076641000,-500.0,0.00019726,2]
[424712217,1781076641000,-500.0,0.00019726,2]
[424712219,1781076641000,-595.54,0.00019726,2]
[424712218,1781076641000,-684.64,0.00019726,2]
[424712216,1781076641000,-2633.84,0.00019726,2]
[424712220,1781076641000,-500.0,0.00019726,2]
[424712221,1781076641000,-1622.59,0.00019726,2]
[424712222,1781076641000,-500.0,0.00019726,2]
[424712210,1781076641000,-500.0,0.00019726,2]
[424712224,1781076641000,-1123.68,0.00019726,2]
[424712223,1781076641000,-500.0,0.00019726,2]
[424712226,1781076641000,-500.0,0.00019726,2]
[424712227,1781076641000,-774.74,0.00019726,2]
[424712228,1781076641000,-2035.39383584,0.00019782,2]
[424712230,1781076641000,-151.0,0.000198,2]
[424712231,1781076641000,-1327.84,0.00019838,3]
[424712229,1781076641000,-237.04125531,0.000198,2]
[424712233,1781076641000,-331.96,0.00019838,3]
[424712232,1781076641000,-663.92,0.00019838,3]
[424712234,1781076641000,-2197.31226974,0.00019897,2]
[424712180,1781076641000,-500.0,0.00019726,2]
[424712225,1781076641000,-500.0,0.00019726,2]
[424712209,1781076641000,-1380.65,0.00019726,2]
[424712212,1781076641000,-1970.7,0.00019726,2]
[424712203,1781076641000,-948.0,0.00019726,2]
[424712176,1781076641000,-500.0,0.00019726,2]
[424712181,1781076641000,-682.71,0.00019726,2]
[424712182,1781076641000,-500.0,0.00019726,2]
[424712185,1781076641000,-500.0,0.00019726,2]
[424712184,1781076641000,-500.0,0.00019726,2]
[424712187,1781076641000,-500.0,0.00019726,2]
[424712188,1781076641000,-500.0,0.00019726,2]
[424712190,1781076641000,-10466.89,0.00019726,2]
[424712191,1781076641000,-847.44,0.00019726,2]
[424712208,1781076641000,-390.80570555,0.00019726,2]
[424712192,1781076641000,-500.0,0.00019726,2]
[424712194,1781076641000,-500.0,0.00019726,2]
[424712196,1781076641000,-1252.66,0.00019726,2]
[424712189,1781076641000,-500.0,0.00019726,2]
[424712197,1781076641000,-500.0,0.00019726,2]
[424712204,1781076641000,-549.32,0.00019726,2]
[424712193,1781076641000,-1593.2,0.00019726,2]
[424712206,1781076641000,-668.78,0.00019726,2]
[424712205,1781076641000,-1685.33,0.00019726,2]
[424712200,1781076641000,-500.0,0.00019726,2]
[424712207,1781076641000,-2369.52,0.00019726,2]
[424712202,1781076641000,-2526.65,0.00019726,2]
[424712201,1781076641000,-1109.04,0.00019726,2]
[424712198,1781076641000,-687.38,0.00019726,2]
[424712195,1781076641000,-712.04,0.00019726,2]
[424712199,1781076641000,-500.0,0.00019726,2]
[424712241,1781076642000,-500.0,0.0002,2]
[424712236,1781076642000,-182.94682,0.00019902,2]
[424712235,1781076642000,-2144.66331821,0.00019897,2]
[424712238,1781076642000,-500.0,0.0002,2]
[424712237,1781076642000,-224363.6475276,0.0002,2]
[424712240,1781076642000,-500.0,0.0002,2]
[424712242,1781076642000,-682.71,0.0002,2]
[424712243,1781076642000,-78359.01720145,0.0002,3]
[424712244,1781076642000,-2991.80289166,0.0002,3]
[424712239,1781076642000,-500.0,0.0002,2]
[424712245,1781076642000,-2585.27287587,0.0002,3]
[424712248,1781076642000,-500.0,0.0002,2]
[424712254,1781076642000,-0.65095868,0.0002,2]
[424712253,1781076642000,-299.44143101,0.0002,2]
[424712250,1781076642000,-500.0,0.0002,2]
[424712255,1781076642000,-0.62856085,0.0002,2]
[424712251,1781076642000,-500.0,0.0002,2]
[424712249,1781076642000,-397.33,0.0002,2]
[424712246,1781076642000,-417.15472785,0.0002,3]
[424712247,1781076642000,-500.0,0.0002,2]
[424712252,1781076642000,-500.0,0.0002,2]
[424712268,1781076646000,-360.69996,0.0002,2]
[424712287,1781076647000,-1380.65,0.0002,2]
[424712289,1781076647000,-2433.85,0.0002,2]
[424712284,1781076647000,-1685.33,0.0002,2]
[424712285,1781076647000,-668.78,0.0002,2]
[424712281,1781076647000,-2526.65,0.0002,2]
[424712282,1781076647000,-948.0,0.0002,2]
[424712283,1781076647000,-549.32,0.0002,2]
[424712279,1781076647000,-500.0,0.0002,2]
[424712275,1781076647000,-1252.66,0.0002,2]
[424712277,1781076647000,-687.38,0.0002,2]
[424712273,1781076647000,-500.0,0.0002,2]
[424712274,1781076647000,-712.04,0.0002,2]
[424712276,1781076647000,-500.0,0.0002,2]
[424712288,1781076647000,-500.0,0.0002,2]
[424712272,1781076647000,-1593.2,0.0002,2]
[424712271,1781076647000,-500.0,0.0002,2]
[424712269,1781076647000,-10105.56147915,0.0002,2]
[424712270,1781076647000,-847.44,0.0002,2]
[424712278,1781076647000,-500.0,0.0002,2]
[424712286,1781076647000,-2369.52,0.0002,2]
[424712280,1781076647000,-1109.04,0.0002,2]
[424712292,1781076647000,-500.0,0.0002,2]
[424712290,1781076647000,-1970.7,0.0002,2]
[424712309,1781076647000,-166.25012917,0.00020223,2]
[424712310,1781076647000,-141.00551801,0.00020273,2]
[424712307,1781076647000,-151.0,0.000201,3]
[424712308,1781076647000,-211.51611214,0.00020196,7]
[424712305,1781076647000,-500.0,0.0002,2]
[424712303,1781076647000,-300.0,0.0002,4]
[424712304,1781076647000,-500.0,0.0002,2]
[424712302,1781076647000,-1123.68,0.0002,2]
[424712306,1781076647000,-774.74,0.0002,2]
[424712300,1781076647000,-500.0,0.0002,2]
[424712299,1781076647000,-1622.59,0.0002,2]
[424712297,1781076647000,-595.54,0.0002,2]
[424712298,1781076647000,-500.0,0.0002,2]
[424712294,1781076647000,-2633.84,0.0002,2]
[424712296,1781076647000,-684.64,0.0002,2]
[424712293,1781076647000,-500.0,0.0002,2]
[424712291,1781076647000,-565.03,0.0002,2]
[424712295,1781076647000,-500.0,0.0002,2]
[424712301,1781076647000,-500.0,0.0002,2]
[424712311,1781076685000,218.49507132,0.00019243,120]
[424712317,1781077114000,161.71,0.00024109,30]
[424712352,1781077832000,-218.49507132,0.00017749,2]
[424712363,1781077832000,-500.0,0.00018077,2]
[424712369,1781077832000,-500.0,0.00018077,2]
[424712367,1781077832000,-500.0,0.00018077,2]
[424712368,1781077832000,-500.0,0.00018077,2]
[424712364,1781077832000,-500.0,0.00018077,2]
[424712366,1781077832000,-500.0,0.00018077,2]
[424712350,1781077832000,-287.35805208,0.00017395,2]
[424712354,1781077832000,-198.86458998,0.00017978,2]
[424712373,1781077832000,-500.0,0.00018077,2]
[424712360,1781077832000,-500.0,0.00018077,2]
[424712359,1781077832000,-219.46530341,0.00018077,2]
[424712358,1781077832000,-372.51378154,0.00018077,2]
[424712361,1781077832000,-500.0,0.00018077,2]
[424712370,1781077832000,-500.0,0.00018077,2]
[424712371,1781077832000,-511.4226221,0.00018077,2]
[424712372,1781077832000,-500.0,0.00018077,2]
[424712374,1781077832000,-2041.05975456,0.00018078,2]
[424712356,1781077832000,-272.745,0.00018077,2]
[424712411,1781077839000,-933.43019471,0.00018078,2]
[424712435,1781078549000,-179.48019553,0.000178,2]
[424712436,1781078565000,-186.00790303,0.000178,2]
[424712479,1781079032000,-165.25057212,0.000176,2]
[424712477,1781079032000,-159.04864123,0.00016796,2]
[424712478,1781079032000,-399.49412891,0.00017147,2]
[424712481,1781079032000,-394.01613493,0.000176,2]
[424712480,1781079032000,-193.6517176,0.000176,2]
[424712484,1781079032000,-300.0,0.00017676,2]
[424712488,1781079032000,-277.747518,0.00017677,2]
[424712482,1781079032000,-399.3442473,0.000176,2]
[424712486,1781079032000,-279.53202593,0.00017677,2]
[424712487,1781079032000,-500.0,0.00017677,2]
[424712483,1781079032000,-405.89291941,0.000176,2]
[424712489,1781079032000,-205.53765117,0.00017678,2]
[424712485,1781079032000,-153.62571239,0.00017677,2]
[424712507,1781079040000,-9872.01313753,0.00017678,2]
[424712506,1781079040000,-3405.6446336,0.00017678,2]
[424712525,1781079719000,7739.08656623,0.00020245,30]
[424712528,1781079750000,-721.0,0.0001629,2]
[424712526,1781079750000,-5000.0,0.00015966,2]
[424712527,1781079750000,-5000.0,0.00016127,2]
[424712530,1781079816000,-305.0,0.00016327,2]
[424712529,1781079816000,-342.71576621,0.0001629,2]
[424712531,1781079827000,-151.97890445,0.000174,2]
[424712533,1781079827000,-152.37358859,0.000174,2]
[424712536,1781079827000,-91.12971558,0.00017575,2]
[424712535,1781079827000,-152.44953213,0.000174,2]
[424712534,1781079827000,-152.37358859,0.000174,2]
[424712532,1781079827000,-151.97890445,0.000174,2]
[424712540,1781079860000,-174.53,0.00017578,2]
[424712537,1781079860000,-80.74859286,0.00017575,2]
[424712538,1781079860000,-506.89611728,0.00017575,2]
[424712539,1781079860000,-321.31524773,0.00017575,2]
[424712544,1781079860000,-874.53656052,0.000176,2]
[424712542,1781079860000,-845.88432609,0.000176,2]
[424712543,1781079860000,-858.48249365,0.000176,2]
[424712545,1781079860000,-330.38401656,0.00017799,2]
[424712541,1781079860000,-757.22264531,0.000176,2]
[424712551,1781079882000,-399.82602906,0.00017799,2]
[424712550,1781079882000,-851.5115975,0.00017799,2]
[424712549,1781079882000,-851.5115975,0.00017799,2]
[424712548,1781079882000,-851.5115975,0.00017799,2]
[424712546,1781079882000,-521.12758094,0.00017799,2]
[424712547,1781079882000,-851.5115975,0.00017799,2]
[424712590,1781080232000,-155.04744806,0.00017147,2]
[424712594,1781080232000,-97.67591659,0.00017697,2]
[424712592,1781080232000,-174.00651618,0.00017696,2]
[424712634,1781080241000,-24.15036348,0.00017697,2]
[424712667,1781080246000,-769761.67279571,0.00019078,2]
[424712654,1781080246000,-971.18751251,0.00017796,2]
[424712669,1781080246000,-3845.4703632,0.00019078,2]
[424712658,1781080246000,-151.0,0.000178,2]
[424712656,1781080246000,-2310.48021128,0.00017797,2]
[424712657,1781080246000,-151.0,0.000178,2]
[424712660,1781080246000,-182.94682,0.0001841,2]
[424712670,1781080246000,-6833.2,0.00019078,2]
[424712655,1781080246000,-1016.22265813,0.00017797,2]
[424712659,1781080246000,-151.0,0.000178,2]
[424712662,1781080246000,-218.49507132,0.00018496,14]
[424712666,1781080246000,-502.51786486,0.00019067,2]
[424712668,1781080246000,-6975.0,0.00019078,2]
[424712653,1781080246000,-49.42384704,0.00017697,2]
[424712663,1781080246000,-417.15472785,0.00018779,2]
[424712661,1781080246000,-186.0,0.00018469,2]
[424712664,1781080246000,-160.0,0.00018779,2]
[424712665,1781080246000,-6941.30271003,0.00019019,2]
[424712671,1781080300000,152.0,0.00020371,30]
[424712672,1781080375000,225.0,0.00020246,120]
[424712673,1781080376000,225.50901606,0.00021246,120]
[424712674,1781080423000,210.0,0.00020246,120]
[424712675,1781080425000,210.0,0.00021246,120]
[424712676,1781080470000,175.0,0.00020246,120]
[424712677,1781080472000,175.0,0.00021246,120]
[424712678,1781080473000,175.0,0.00022246,120]
[424712679,1781080474000,176.8601858,0.00023246,120]
[424712681,1781080490000,152.0,0.0002033,30]
[424712680,1781080490000,152.0,0.0002033,30]
[424712683,1781080513000,152.0,0.00020292,30]
[424712684,1781080568000,157.0,0.00020246,120]
[424712685,1781080569000,157.0,0.00021246,120]